[Event "Titled Tuesday Blitz April 25 Late 2023"]
[White "Urbina Perez, Juan Antonio"]
[Black "Holtel, Jasper"]
[WhiteFideId "2217368"]
[BlackFideId "12956376"]
[WhiteElo "2197"]
[BlackElo "2372"]
[Result "1-0"]
[Round "05"]
[TimeControl "180+2"]
[Date "2023.04.25"]
[WhiteClock "0:01:31"]
[BlackClock "0:00:11"]

1. c4 {[%clk 0:02:56]}  Nf6 {[%clk 0:02:59]} 2. g3 {[%clk 0:02:56]}  g6 {[%clk 0:03:00]} 3. Bg2 {[%clk 0:02:56]}  Bg7 {[%clk 0:03:01]} 4. Nc3 {[%clk 0:02:56]}  O-O {[%clk 0:03:01]} 5. d4 {[%clk 0:02:57]}  d6 {[%clk 0:03:01]} 6. h3 {[%clk 0:02:57]}  c5 {[%clk 0:02:59]} 7. dxc5 {[%clk 0:02:56]}  dxc5 {[%clk 0:03:00]} 8. Qxd8 {[%clk 0:02:56]}  Rxd8 {[%clk 0:03:00]} 9. e3 {[%clk 0:02:55]}  Be6 {[%clk 0:02:58]} 10. b3 {[%clk 0:02:49]}  Ne4 {[%clk 0:02:30]} 11. Nxe4 {[%clk 0:02:47]}  Bxa1 {[%clk 0:02:29]} 12. Nxc5 {[%clk 0:02:47]}  Bc3+ {[%clk 0:02:06]} 13. Ke2 {[%clk 0:02:45]}  Nc6 {[%clk 0:02:04]} 14. Nxb7 {[%clk 0:02:42]}  Rdc8 {[%clk 0:01:40]} 15. Nc5 {[%clk 0:02:41]}  Rab8 {[%clk 0:01:34]} 16. Nxe6 {[%clk 0:02:38]}  fxe6 {[%clk 0:01:35]} 17. Nf3 {[%clk 0:02:38]}  Bf6 {[%clk 0:01:30]} 18. Nd2 {[%clk 0:02:37]}  Nb4 {[%clk 0:01:21]} 19. a3 {[%clk 0:02:32]}  Na6 {[%clk 0:01:20]} 20. b4 {[%clk 0:02:32]}  Rd8 {[%clk 0:01:19]} 21. Ne4 {[%clk 0:02:28]}  Kf7 {[%clk 0:01:17]} 22. Nxf6 {[%clk 0:02:20]}  exf6 {[%clk 0:01:18]} 23. Bb2 {[%clk 0:02:19]}  Rdc8 {[%clk 0:00:59]} 24. Rc1 {[%clk 0:02:17]}  Nxb4 {[%clk 0:00:54]} 25. axb4 {[%clk 0:02:16]}  Rxb4 {[%clk 0:00:55]} 26. Bd4 {[%clk 0:02:11]}  Rcxc4 {[%clk 0:00:49]} 27. Rxc4 {[%clk 0:02:09]}  Rxc4 {[%clk 0:00:50]} 28. Bxa7 {[%clk 0:02:09]}  Rc2+ {[%clk 0:00:49]} 29. Kf3 {[%clk 0:02:07]}  g5 {[%clk 0:00:48]} 30. Bf1 {[%clk 0:02:07]}  h5 {[%clk 0:00:46]} 31. Bd3 {[%clk 0:02:03]}  Rd2 {[%clk 0:00:45]} 32. Bc4 {[%clk 0:02:03]}  Rc2 {[%clk 0:00:43]} 33. Bd3 {[%clk 0:02:02]}  Rd2 {[%clk 0:00:44]} 34. Bf1 {[%clk 0:02:02]}  Kg6 {[%clk 0:00:41]} 35. Bb6 {[%clk 0:01:59]}  f5 {[%clk 0:00:37]} 36. Ba5 {[%clk 0:01:55]}  Ra2 {[%clk 0:00:36]} 37. Bc3 {[%clk 0:01:55]}  g4+ {[%clk 0:00:34]} 38. hxg4 {[%clk 0:01:54]}  hxg4+ {[%clk 0:00:35]} 39. Kg2 {[%clk 0:01:55]}  Rc2 {[%clk 0:00:34]} 40. Bd4 {[%clk 0:01:54]}  Kf7 {[%clk 0:00:29]} 41. Bd3 {[%clk 0:01:53]}  Rd2 {[%clk 0:00:29]} 42. Bc4 {[%clk 0:01:52]}  Rc2 {[%clk 0:00:28]} 43. Bb3 {[%clk 0:01:52]}  Rc1 {[%clk 0:00:27]} 44. f3 {[%clk 0:01:52]}  gxf3+ {[%clk 0:00:22]} 45. Kxf3 {[%clk 0:01:53]}  Rf1+ {[%clk 0:00:20]} 46. Kg2 {[%clk 0:01:52]}  Rb1 {[%clk 0:00:20]} 47. Bc2 {[%clk 0:01:51]}  Rc1 {[%clk 0:00:20]} 48. Bd3 {[%clk 0:01:51]}  Rd1 {[%clk 0:00:20]} 49. Bc4 {[%clk 0:01:50]}  Rd2+ {[%clk 0:00:18]} 50. Kf3 {[%clk 0:01:49]}  Rd1 {[%clk 0:00:18]} 51. g4 {[%clk 0:01:46]}  fxg4+ {[%clk 0:00:18]} 52. Kxg4 {[%clk 0:01:47]}  Rc1 {[%clk 0:00:17]} 53. Bb3 {[%clk 0:01:44]}  Rb1 {[%clk 0:00:17]} 54. Bc2 {[%clk 0:01:44]}  Rc1 {[%clk 0:00:17]} 55. Ba4 {[%clk 0:01:43]}  Rg1+ {[%clk 0:00:16]} 56. Kf4 {[%clk 0:01:43]}  Rf1+ {[%clk 0:00:16]} 57. Ke5 {[%clk 0:01:42]}  Rf5+ {[%clk 0:00:15]} 58. Ke4 {[%clk 0:01:42]}  Rh5 {[%clk 0:00:14]} 59. Bd1 {[%clk 0:01:41]}  Ra5 {[%clk 0:00:14]} 60. Bb3 {[%clk 0:01:38]}  Rb5 {[%clk 0:00:14]} 61. Bc4 {[%clk 0:01:38]}  Rh5 {[%clk 0:00:13]} 62. Be2 {[%clk 0:01:38]}  Ra5 {[%clk 0:00:13]} 63. Kd3 {[%clk 0:01:37]}  Rg5 {[%clk 0:00:12]} 64. Bf3 {[%clk 0:01:34]}  Ra5 {[%clk 0:00:11]} 65. Ke4 {[%clk 0:01:33]}  Rg5 {[%clk 0:00:10]} 66. Kf4 {[%clk 0:01:33]}  Rf5+ {[%clk 0:00:10]} 67. Kg4 {[%clk 0:01:32]}  Ra5 {[%clk 0:00:11]} 68. Kh4 {[%clk 0:01:31]}  Rc5 {[%clk 0:00:11]} 69. Bxc5 {[%clk 0:01:31]} 1-0


[Site "https://www.chess.com"]

[Event "Titled Tuesday Blitz April 25 Late 2023"]
[White "Chakravarthi Reddy, M"]
[Black "Sanchez, Robert"]
[WhiteFideId "25009532"]
[BlackFideId "2034360"]
[WhiteElo "2201"]
[BlackElo "1966"]
[Result "1-0"]
[Round "05"]
[TimeControl "180+2"]
[Date "2023.04.25"]
[WhiteClock "0:01:02"]
[BlackClock "0:00:15"]

1. e4 {[%clk 0:03:00]}  e6 {[%clk 0:03:00]} 2. d4 {[%clk 0:03:00]}  d5 {[%clk 0:03:00]} 3. e5 {[%clk 0:03:00]}  b6 {[%clk 0:02:56]} 4. c3 {[%clk 0:03:01]}  Qd7 {[%clk 0:02:57]} 5. Nf3 {[%clk 0:02:58]}  Ba6 {[%clk 0:02:57]} 6. Bxa6 {[%clk 0:02:50]}  Nxa6 {[%clk 0:02:57]} 7. Qd3 {[%clk 0:02:50]}  Nb8 {[%clk 0:02:57]} 8. O-O {[%clk 0:02:50]}  c5 {[%clk 0:02:57]} 9. Nbd2 {[%clk 0:02:47]}  Ne7 {[%clk 0:02:57]} 10. c4 {[%clk 0:02:45]}  Nbc6 {[%clk 0:02:41]} 11. cxd5 {[%clk 0:02:33]}  Nxd5 {[%clk 0:02:40]} 12. Ne4 {[%clk 0:02:28]}  cxd4 {[%clk 0:02:37]} 13. Bg5 {[%clk 0:02:19]}  h6 {[%clk 0:02:31]} 14. Bd2 {[%clk 0:02:18]}  Be7 {[%clk 0:02:28]} 15. a3 {[%clk 0:02:13]}  O-O {[%clk 0:02:27]} 16. Rad1 {[%clk 0:01:59]}  Rad8 {[%clk 0:01:49]} 17. Rfe1 {[%clk 0:01:55]}  Qc7 {[%clk 0:01:46]} 18. Ng3 {[%clk 0:01:54]}  Rfe8 {[%clk 0:01:21]} 19. Re4 {[%clk 0:01:53]}  f5 {[%clk 0:01:15]} 20. exf6 {[%clk 0:01:52]}  Bxf6 {[%clk 0:01:11]} 21. Rde1 {[%clk 0:01:51]}  e5 {[%clk 0:01:10]} 22. Rg4 {[%clk 0:01:46]}  Kh8 {[%clk 0:00:58]} 23. Nh5 {[%clk 0:01:39]}  Qf7 {[%clk 0:00:48]} 24. Qf5 {[%clk 0:01:28]}  Nce7 {[%clk 0:00:33]} 25. Nxe5 {[%clk 0:01:28]}  Nxf5 {[%clk 0:00:27]} 26. Nxf7+ {[%clk 0:01:27]}  Kh7 {[%clk 0:00:24]} 27. Nxd8 {[%clk 0:01:14]}  Rxd8 {[%clk 0:00:25]} 28. Nxf6+ {[%clk 0:01:08]}  Nxf6 {[%clk 0:00:25]} 29. Rf4 {[%clk 0:01:07]}  Rd5 {[%clk 0:00:20]} 30. h3 {[%clk 0:01:04]}  g5 {[%clk 0:00:20]} 31. Rf3 {[%clk 0:01:03]}  Kg6 {[%clk 0:00:21]} 32. Re6 {[%clk 0:01:02]}  Kf7 {[%clk 0:00:14]} 33. Rxf6+ {[%clk 0:01:01]}  Kxf6 {[%clk 0:00:15]} 34. g4 {[%clk 0:01:02]} 1-0


[Site "https://www.chess.com"]

[Event "Titled Tuesday Blitz April 25 Late 2023"]
[White "Nakamura, Hikaru"]
[Black "Bortnyk, Olexandr"]
[WhiteFideId "2016192"]
[BlackFideId "14120828"]
[WhiteElo "2885"]
[BlackElo "2734"]
[Result "1/2-1/2"]
[Round "06"]
[TimeControl "180+2"]
[Date "2023.04.25"]
[WhiteClock "0:00:10"]
[BlackClock "0:00:09"]

1. Nf3 {[%clk 0:03:00]}  Nf6 {[%clk 0:02:59]} 2. d4 {[%clk 0:03:00]}  d6 {[%clk 0:02:55]} 3. Nc3 {[%clk 0:02:59]}  Nbd7 {[%clk 0:02:49]} 4. e4 {[%clk 0:02:59]}  e5 {[%clk 0:02:49]} 5. Bc4 {[%clk 0:03:00]}  Be7 {[%clk 0:02:50]} 6. O-O {[%clk 0:03:00]}  c6 {[%clk 0:02:51]} 7. a4 {[%clk 0:03:01]}  Qc7 {[%clk 0:02:51]} 8. Qe2 {[%clk 0:03:01]}  O-O {[%clk 0:02:51]} 9. h3 {[%clk 0:02:57]}  h6 {[%clk 0:02:50]} 10. Rd1 {[%clk 0:02:56]}  Re8 {[%clk 0:02:49]} 11. d5 {[%clk 0:02:54]}  Nf8 {[%clk 0:02:45]} 12. a5 {[%clk 0:02:50]}  Ng6 {[%clk 0:02:32]} 13. Qe1 {[%clk 0:02:45]}  Bd7 {[%clk 0:02:04]} 14. Bb3 {[%clk 0:02:44]}  c5 {[%clk 0:02:03]} 15. Bc4 {[%clk 0:02:33]}  Rf8 {[%clk 0:01:53]} 16. a6 {[%clk 0:02:33]}  b6 {[%clk 0:01:53]} 17. Bb5 {[%clk 0:02:29]}  Nh5 {[%clk 0:01:45]} 18. Ra3 {[%clk 0:02:24]}  Bxb5 {[%clk 0:01:44]} 19. Nxb5 {[%clk 0:02:24]}  Qd7 {[%clk 0:01:45]} 20. c4 {[%clk 0:02:23]}  Nhf4 {[%clk 0:01:19]} 21. Bxf4 {[%clk 0:02:17]}  Nxf4 {[%clk 0:01:16]} 22. Nd2 {[%clk 0:02:17]}  Kh7 {[%clk 0:01:03]} 23. Kh2 {[%clk 0:02:04]}  g6 {[%clk 0:01:01]} 24. Qf1 {[%clk 0:01:58]}  f5 {[%clk 0:01:00]} 25. exf5 {[%clk 0:01:52]}  gxf5 {[%clk 0:01:01]} 26. g3 {[%clk 0:01:52]}  Ng6 {[%clk 0:01:00]} 27. f4 {[%clk 0:01:53]}  exf4 {[%clk 0:00:52]} 28. gxf4 {[%clk 0:01:53]}  Bf6 {[%clk 0:00:53]} 29. Re3 {[%clk 0:01:46]}  Rae8 {[%clk 0:00:53]} 30. Rde1 {[%clk 0:01:45]}  Rxe3 {[%clk 0:00:42]} 31. Rxe3 {[%clk 0:01:45]}  Re8 {[%clk 0:00:43]} 32. Qf3 {[%clk 0:00:57]}  Rxe3 {[%clk 0:00:39]} 33. Qxe3 {[%clk 0:00:58]}  Nxf4 {[%clk 0:00:39]} 34. Nf3 {[%clk 0:00:57]}  Bg5 {[%clk 0:00:28]} 35. Qe1 {[%clk 0:00:45]}  Bf6 {[%clk 0:00:26]} 36. Qe3 {[%clk 0:00:39]}  Nxd5 {[%clk 0:00:26]} 37. Qd2 {[%clk 0:00:33]}  Nb4 {[%clk 0:00:24]} 38. Qf4 {[%clk 0:00:21]}  Nd3 {[%clk 0:00:17]} 39. Qd2 {[%clk 0:00:19]}  Ne5 {[%clk 0:00:14]} 40. Qd5 {[%clk 0:00:16]}  Nxf3+ {[%clk 0:00:13]} 41. Qxf3 {[%clk 0:00:17]}  Be5+ {[%clk 0:00:05]} 42. Kh1 {[%clk 0:00:18]}  Qe6 {[%clk 0:00:05]} 43. b3 {[%clk 0:00:16]}  Bf6 {[%clk 0:00:02]} 44. Kg2 {[%clk 0:00:15]}  Qg8+ {[%clk 0:00:01]} 45. Kf1 {[%clk 0:00:15]}  Qe6 {[%clk 0:00:01]} 46. Nxa7 {[%clk 0:00:15]}  Bh4 {[%clk 0:00:01]} 47. Qe2 {[%clk 0:00:14]}  Qf6 {[%clk 0:00:02]} 48. Nb5 {[%clk 0:00:09]}  Qa1+ {[%clk 0:00:02]} 49. Kg2 {[%clk 0:00:09]}  Qxa6 {[%clk 0:00:03]} 50. Nxd6 {[%clk 0:00:10]}  Qa8+ {[%clk 0:00:03]} 51. Qf3 {[%clk 0:00:10]}  Qa2+ {[%clk 0:00:03]} 52. Kg1 {[%clk 0:00:09]}  Qb1+ {[%clk 0:00:04]} 53. Qf1 {[%clk 0:00:10]}  Qxf1+ {[%clk 0:00:02]} 54. Kxf1 {[%clk 0:00:11]}  Kg6 {[%clk 0:00:02]} 55. Ke2 {[%clk 0:00:11]}  Bd8 {[%clk 0:00:01]} 56. Kf3 {[%clk 0:00:12]}  Kf6 {[%clk 0:00:01]} 57. Ke3 {[%clk 0:00:08]}  Ke6 {[%clk 0:00:02]} 58. Nb5 {[%clk 0:00:08]}  Bg5+ {[%clk 0:00:02]} 59. Kf3 {[%clk 0:00:08]}  Ke5 {[%clk 0:00:02]} 60. Nc7 {[%clk 0:00:08]}  Kd4 {[%clk 0:00:01]} 61. Nd5 {[%clk 0:00:08]}  Kd3 {[%clk 0:00:01]} 62. Nxb6 {[%clk 0:00:08]}  Kc3 {[%clk 0:00:02]} 63. Nd7 {[%clk 0:00:08]}  Kb4 {[%clk 0:00:02]} 64. h4 {[%clk 0:00:06]}  Bxh4 {[%clk 0:00:02]} 65. Kf4 {[%clk 0:00:07]}  Bf2 {[%clk 0:00:02]} 66. Kxf5 {[%clk 0:00:07]}  Kxb3 {[%clk 0:00:03]} 67. Kg4 {[%clk 0:00:04]}  Kxc4 {[%clk 0:00:02]} 68. Nxc5 {[%clk 0:00:03]}  Bxc5 {[%clk 0:00:02]} 69. Kf3 {[%clk 0:00:04]}  Be7 {[%clk 0:00:02]} 70. Kg2 {[%clk 0:00:05]}  Bg5 {[%clk 0:00:02]} 71. Kh1 {[%clk 0:00:06]}  Kd5 {[%clk 0:00:03]} 72. Kg2 {[%clk 0:00:07]}  Ke6 {[%clk 0:00:04]} 73. Kh1 {[%clk 0:00:07]}  Kf5 {[%clk 0:00:05]} 74. Kg2 {[%clk 0:00:08]}  Kg4 {[%clk 0:00:06]} 75. Kh1 {[%clk 0:00:09]}  Kh3 {[%clk 0:00:07]} 76. Kg1 {[%clk 0:00:10]}  Bf4 {[%clk 0:00:08]} 77. Kh1 {[%clk 0:00:10]}  Be3 {[%clk 0:00:09]} 1/2-1/2


[Site "https://www.chess.com"]

[Event "Titled Tuesday Blitz April 25 Late 2023"]
[White "Makarian, Rudik"]
[Black "Janik, Igor"]
[WhiteFideId "44105681"]
[BlackFideId "1159259"]
[WhiteElo "2430"]
[BlackElo "2484"]
[Result "1/2-1/2"]
[Round "06"]
[TimeControl "180+2"]
[Date "2023.04.25"]
[WhiteClock "0:00:07"]
[BlackClock "0:00:13"]

1. d4 {[%clk 0:03:00]}  Nf6 {[%clk 0:02:55]} 2. c4 {[%clk 0:03:01]}  e6 {[%clk 0:02:55]} 3. Nf3 {[%clk 0:03:02]}  b6 {[%clk 0:02:55]} 4. g3 {[%clk 0:03:02]}  Bb7 {[%clk 0:02:55]} 5. Bg2 {[%clk 0:03:02]}  c5 {[%clk 0:02:56]} 6. d5 {[%clk 0:02:56]}  exd5 {[%clk 0:02:57]} 7. Nh4 {[%clk 0:02:55]}  g6 {[%clk 0:02:57]} 8. O-O {[%clk 0:02:55]}  Bg7 {[%clk 0:02:58]} 9. Nc3 {[%clk 0:02:54]}  O-O {[%clk 0:02:58]} 10. cxd5 {[%clk 0:02:49]}  d6 {[%clk 0:02:56]} 11. e4 {[%clk 0:02:49]}  Re8 {[%clk 0:02:55]} 12. Re1 {[%clk 0:02:49]}  a6 {[%clk 0:02:55]} 13. a4 {[%clk 0:02:49]}  Nbd7 {[%clk 0:02:55]} 14. h3 {[%clk 0:02:46]}  c4 {[%clk 0:02:47]} 15. Bf1 {[%clk 0:02:42]}  Nc5 {[%clk 0:02:46]} 16. Bg5 {[%clk 0:02:25]}  h6 {[%clk 0:02:38]} 17. Bxf6 {[%clk 0:02:25]}  Bxf6 {[%clk 0:02:39]} 18. Nf3 {[%clk 0:02:23]}  Bxc3 {[%clk 0:02:29]} 19. bxc3 {[%clk 0:02:24]}  Nxe4 {[%clk 0:02:28]} 20. Qd4 {[%clk 0:02:17]}  Nc5 {[%clk 0:02:17]} 21. Bxc4 {[%clk 0:02:15]}  Qd7 {[%clk 0:02:16]} 22. Qf4 {[%clk 0:02:04]}  Kg7 {[%clk 0:01:59]} 23. h4 {[%clk 0:01:50]}  Rxe1+ {[%clk 0:01:58]} 24. Rxe1 {[%clk 0:01:50]}  Re8 {[%clk 0:01:58]} 25. Rxe8 {[%clk 0:01:45]}  Qxe8 {[%clk 0:01:56]} 26. Qxd6 {[%clk 0:01:22]}  Nxa4 {[%clk 0:01:48]} 27. h5 {[%clk 0:00:55]}  Qe4 {[%clk 0:00:51]} 28. Ne5 {[%clk 0:00:48]}  Nxc3 {[%clk 0:00:36]} 29. Nd7 {[%clk 0:00:37]}  Qe1+ {[%clk 0:00:30]} 30. Kg2 {[%clk 0:00:34]}  Qxf2+ {[%clk 0:00:31]} 31. Kh1 {[%clk 0:00:18]}  Qe1+ {[%clk 0:00:28]} 32. Kg2 {[%clk 0:00:16]}  Qf2+ {[%clk 0:00:26]} 33. Kh1 {[%clk 0:00:17]}  Qf3+ {[%clk 0:00:20]} 34. Kg1 {[%clk 0:00:15]}  Qe3+ {[%clk 0:00:21]} 35. Kh2 {[%clk 0:00:13]}  Qf2+ {[%clk 0:00:13]} 36. Kh1 {[%clk 0:00:07]} 1/2-1/2


[Site "https://www.chess.com"]

[Event "Titled Tuesday Blitz April 25 Late 2023"]
[White "Firouzja, Alireza"]
[Black "Demchenko, Anton"]
[WhiteFideId "12573981"]
[BlackFideId "4160258"]
[WhiteElo "2904"]
[BlackElo "2545"]
[Result "1-0"]
[Round "06"]
[TimeControl "180+2"]
[Date "2023.04.25"]
[WhiteClock "0:00:26"]
[BlackClock "0:00:07"]

1. d4 {[%clk 0:03:00]}  Nf6 {[%clk 0:02:59]} 2. c4 {[%clk 0:03:00]}  d6 {[%clk 0:03:00]} 3. Nc3 {[%clk 0:02:59]}  e5 {[%clk 0:03:00]} 4. Nf3 {[%clk 0:03:00]}  Nc6 {[%clk 0:03:00]} 5. g3 {[%clk 0:02:55]}  Be7 {[%clk 0:03:00]} 6. Bg2 {[%clk 0:02:55]}  O-O {[%clk 0:03:00]} 7. O-O {[%clk 0:02:55]}  h6 {[%clk 0:03:01]} 8. e3 {[%clk 0:02:45]}  Bf5 {[%clk 0:02:58]} 9. b3 {[%clk 0:02:41]}  Re8 {[%clk 0:02:56]} 10. Bb2 {[%clk 0:02:40]}  Bf8 {[%clk 0:02:50]} 11. Nh4 {[%clk 0:02:29]}  Bh7 {[%clk 0:02:46]} 12. dxe5 {[%clk 0:02:18]}  dxe5 {[%clk 0:02:44]} 13. Nd5 {[%clk 0:02:11]}  Nxd5 {[%clk 0:02:35]} 14. Bxd5 {[%clk 0:02:12]}  Nb4 {[%clk 0:02:18]} 15. Bxb7 {[%clk 0:02:07]}  Rb8 {[%clk 0:02:18]} 16. Bf3 {[%clk 0:01:55]}  g5 {[%clk 0:02:01]} 17. Ng2 {[%clk 0:01:55]}  e4 {[%clk 0:01:19]} 18. Bh5 {[%clk 0:01:51]}  Qxd1 {[%clk 0:01:17]} 19. Rfxd1 {[%clk 0:01:43]}  Nd3 {[%clk 0:01:14]} 20. Bc3 {[%clk 0:01:43]}  Bg7 {[%clk 0:01:12]} 21. Bxg7 {[%clk 0:01:41]}  Kxg7 {[%clk 0:01:13]} 22. Rd2 {[%clk 0:01:40]}  a5 {[%clk 0:01:10]} 23. Ne1 {[%clk 0:01:32]}  Ne5 {[%clk 0:01:09]} 24. Nc2 {[%clk 0:01:15]}  a4 {[%clk 0:01:08]} 25. Nd4 {[%clk 0:01:12]}  axb3 {[%clk 0:00:54]} 26. axb3 {[%clk 0:01:13]}  Ra8 {[%clk 0:00:53]} 27. Rb1 {[%clk 0:01:01]}  c6 {[%clk 0:00:49]} 28. Be2 {[%clk 0:00:58]}  g4 {[%clk 0:00:47]} 29. Kg2 {[%clk 0:00:53]}  Red8 {[%clk 0:00:41]} 30. Rbd1 {[%clk 0:00:36]}  Kf6 {[%clk 0:00:41]} 31. Nxc6 {[%clk 0:00:32]}  Nxc6 {[%clk 0:00:40]} 32. Rd6+ {[%clk 0:00:31]}  Kg5 {[%clk 0:00:32]} 33. Rxc6 {[%clk 0:00:31]}  Rxd1 {[%clk 0:00:33]} 34. Bxd1 {[%clk 0:00:32]}  Rd8 {[%clk 0:00:33]} 35. Rc5+ {[%clk 0:00:28]}  f5 {[%clk 0:00:20]} 36. Rd5 {[%clk 0:00:26]}  Rxd5 {[%clk 0:00:20]} 37. cxd5 {[%clk 0:00:27]}  Bg8 {[%clk 0:00:20]} 38. d6 {[%clk 0:00:27]}  Kf6 {[%clk 0:00:20]} 39. b4 {[%clk 0:00:27]}  Bd5 {[%clk 0:00:19]} 40. Ba4 {[%clk 0:00:26]}  Ke6 {[%clk 0:00:06]} 41. d7 {[%clk 0:00:25]}  Ke7 {[%clk 0:00:07]} 42. Kf1 {[%clk 0:00:26]} 1-0


[Site "https://www.chess.com"]

[Event "Titled Tuesday Blitz April 25 Late 2023"]
[White "Sarana, Alexey"]
[Black "Quesada Perez, Yasser"]
[WhiteFideId "24133795"]
[BlackFideId "3509362"]
[WhiteElo "2714"]
[BlackElo "2496"]
[Result "1-0"]
[Round "06"]
[TimeControl "180+2"]
[Date "2023.04.25"]
[WhiteClock "0:01:13"]
[BlackClock "0:00:02"]

1. d4 {[%clk 0:02:55]}  Nf6 {[%clk 0:02:59]} 2. c4 {[%clk 0:02:56]}  e6 {[%clk 0:02:59]} 3. Nc3 {[%clk 0:02:56]}  Bb4 {[%clk 0:02:58]} 4. e3 {[%clk 0:02:57]}  O-O {[%clk 0:02:57]} 5. Bd3 {[%clk 0:02:57]}  c5 {[%clk 0:02:56]} 6. Ne2 {[%clk 0:02:56]}  d5 {[%clk 0:02:56]} 7. cxd5 {[%clk 0:02:56]}  exd5 {[%clk 0:02:55]} 8. a3 {[%clk 0:02:55]}  Bxc3+ {[%clk 0:02:51]} 9. bxc3 {[%clk 0:02:56]}  b6 {[%clk 0:02:50]} 10. O-O {[%clk 0:02:56]}  Ba6 {[%clk 0:02:49]} 11. f3 {[%clk 0:02:56]}  Bxd3 {[%clk 0:02:48]} 12. Qxd3 {[%clk 0:02:57]}  Nc6 {[%clk 0:02:48]} 13. Ng3 {[%clk 0:02:57]}  Re8 {[%clk 0:02:47]} 14. Bb2 {[%clk 0:02:58]}  Na5 {[%clk 0:02:47]} 15. e4 {[%clk 0:02:57]}  Rc8 {[%clk 0:01:50]} 16. e5 {[%clk 0:02:52]}  Nd7 {[%clk 0:01:51]} 17. Nf5 {[%clk 0:02:50]}  Nc4 {[%clk 0:01:48]} 18. Bc1 {[%clk 0:02:49]}  Nf8 {[%clk 0:01:46]} 19. f4 {[%clk 0:02:41]}  Qd7 {[%clk 0:01:42]} 20. Ng3 {[%clk 0:02:39]}  f6 {[%clk 0:01:31]} 21. Ra2 {[%clk 0:02:11]}  Kh8 {[%clk 0:01:28]} 22. Re2 {[%clk 0:02:06]}  cxd4 {[%clk 0:01:21]} 23. cxd4 {[%clk 0:02:06]}  b5 {[%clk 0:01:01]} 24. Kh1 {[%clk 0:02:03]}  a5 {[%clk 0:01:01]} 25. Nh5 {[%clk 0:01:48]}  f5 {[%clk 0:00:58]} 26. g4 {[%clk 0:01:49]}  fxg4 {[%clk 0:00:47]} 27. f5 {[%clk 0:01:49]}  b4 {[%clk 0:00:39]} 28. axb4 {[%clk 0:01:47]}  axb4 {[%clk 0:00:39]} 29. Qg3 {[%clk 0:01:44]}  Rb8 {[%clk 0:00:30]} 30. Qxg4 {[%clk 0:01:37]}  b3 {[%clk 0:00:30]} 31. e6 {[%clk 0:01:38]}  Qa7 {[%clk 0:00:23]} 32. f6 {[%clk 0:01:21]}  g6 {[%clk 0:00:19]} 33. f7 {[%clk 0:01:20]}  Re7 {[%clk 0:00:05]} 34. Bh6 {[%clk 0:01:13]}  Nxe6 {[%clk 0:00:02]} 35. Bg7+ {[%clk 0:01:12]}  Nxg7 {[%clk 0:00:02]} 36. f8=Q+ {[%clk 0:01:13]} 1-0


[Site "https://www.chess.com"]

[Event "Titled Tuesday Blitz April 25 Late 2023"]
[White "Mekhitarian, Krikor Sevag"]
[Black "Deac, Bogdan-Daniel"]
[WhiteFideId "2107660"]
[BlackFideId "1226380"]
[WhiteElo "2604"]
[BlackElo "2649"]
[Result "0-1"]
[Round "06"]
[TimeControl "180+2"]
[Date "2023.04.25"]
[WhiteClock "0:00:02"]
[BlackClock "0:00:03"]

1. Nf3 {[%clk 0:03:00]}  b6 {[%clk 0:02:59]} 2. g3 {[%clk 0:02:58]}  Bb7 {[%clk 0:02:59]} 3. Bg2 {[%clk 0:02:58]}  g6 {[%clk 0:03:00]} 4. c4 {[%clk 0:02:57]}  c5 {[%clk 0:03:00]} 5. O-O {[%clk 0:02:56]}  Bg7 {[%clk 0:03:00]} 6. Nc3 {[%clk 0:02:49]}  Nf6 {[%clk 0:03:00]} 7. d4 {[%clk 0:02:47]}  cxd4 {[%clk 0:03:01]} 8. Qxd4 {[%clk 0:02:47]}  d6 {[%clk 0:03:00]} 9. Rd1 {[%clk 0:02:47]}  Nbd7 {[%clk 0:03:00]} 10. b3 {[%clk 0:02:45]}  O-O {[%clk 0:02:50]} 11. Bb2 {[%clk 0:02:45]}  a6 {[%clk 0:02:50]} 12. Rac1 {[%clk 0:02:44]}  Rb8 {[%clk 0:02:49]} 13. Nd5 {[%clk 0:02:29]}  b5 {[%clk 0:02:10]} 14. Nxf6+ {[%clk 0:02:17]}  Bxf6 {[%clk 0:02:09]} 15. Qd2 {[%clk 0:02:17]}  Qb6 {[%clk 0:02:01]} 16. Bxf6 {[%clk 0:02:01]}  Nxf6 {[%clk 0:02:02]} 17. Qd4 {[%clk 0:01:54]}  Qa5 {[%clk 0:02:02]} 18. Qd2 {[%clk 0:01:43]}  Qa3 {[%clk 0:02:00]} 19. cxb5 {[%clk 0:01:35]}  axb5 {[%clk 0:01:59]} 20. Nd4 {[%clk 0:01:36]}  Bxg2 {[%clk 0:01:46]} 21. Kxg2 {[%clk 0:01:37]}  Qa8+ {[%clk 0:01:45]} 22. Kg1 {[%clk 0:01:27]}  Rb6 {[%clk 0:01:40]} 23. Rc2 {[%clk 0:01:04]}  e5 {[%clk 0:00:56]} 24. Nf3 {[%clk 0:00:59]}  b4 {[%clk 0:00:51]} 25. Qe3 {[%clk 0:00:38]}  Ra6 {[%clk 0:00:47]} 26. Qd2 {[%clk 0:00:34]}  Rb8 {[%clk 0:00:40]} 27. Rdc1 {[%clk 0:00:28]}  Kg7 {[%clk 0:00:29]} 28. Ng5 {[%clk 0:00:16]}  Qd5 {[%clk 0:00:13]} 29. Qe3 {[%clk 0:00:13]}  h6 {[%clk 0:00:11]} 30. Nf3 {[%clk 0:00:11]}  Qa8 {[%clk 0:00:09]} 31. Qd2 {[%clk 0:00:07]}  Ne4 {[%clk 0:00:09]} 32. Qe3 {[%clk 0:00:07]}  Nf6 {[%clk 0:00:07]} 33. Qd2 {[%clk 0:00:07]}  Qe4 {[%clk 0:00:04]} 34. Rc4 {[%clk 0:00:06]}  Qd5 {[%clk 0:00:04]} 35. Qc2 {[%clk 0:00:06]}  Qa5 {[%clk 0:00:04]} 36. Qd2 {[%clk 0:00:06]}  Qxa2 {[%clk 0:00:03]} 37. R4c2 {[%clk 0:00:05]}  Qxb3 {[%clk 0:00:03]} 38. Rc7 {[%clk 0:00:06]}  Qe6 {[%clk 0:00:03]} 39. Qd3 {[%clk 0:00:03]}  Rab6 {[%clk 0:00:03]} 40. Qb1 {[%clk 0:00:02]}  b3 {[%clk 0:00:03]} 41. Rd1 {[%clk 0:00:02]}  b2 {[%clk 0:00:03]} 0-1


[Site "https://www.chess.com"]